Workbook

Sheet Лист1
A1: № помещения | B1: Назначение | C1: Усл. Обозн. Ограждений | D1: Ориентация по сторонам света | E1: tв (C°) | F1: tн (C°) | G1: tв-tн (C°) | H1: Размер ограждений | J1: F (м²) | K1: K (Вт/м²*С°) | L1: ΔK (Вт/м²*С°) | M1: n | N1: Основные теплопотери (Q Вт) | O1: Дополнительные теплопотери | S1: Qполн | T1: ΣQ
O2: Ориентация | P2: Высота | Q2: Угол | R2: 1+ΣB
A3: 1 | B3: 2 | C3: 3 | D3: 4 | E3: 5 | F3: 6 | G3: 7 | H3: 8 | J3: 9 | K3: 10 | L3: 11 | M3: 12 | N3: 13 | O3: 14 | P3: 15 | Q3: 16 | R3: 17 | S3: 18 | T3: 19
A4: 101 | B4: Комната | C4: НС1 | D4: СЗ | E4: 20 | F4: -35 | G4: 55 | H4: 5 | I4: 3.39 | J4: =PRODUCT(H4,I4) -> 16.95 | K4: 0.25 | L4: - | M4: 1 | N4: =PRODUCT(G4,J4,K4,M4,) -> 233.0625 | O4: 0.1 | P4: 0 | Q4: 0.05 | R4: =SUM(1,O4:Q4) -> 1.15 | S4: =PRODUCT(N4,R4,) -> 268.021875 | T4: =SUM(S4:S7) -> 643.561677
C5: НС2 | D5: ЮЗ | E5: 20 | F5: -35 | G5: =E5-F5 -> 55 | H5: 1.6 | I5: 3.385 | J5: 5.416 | K5: 0.25 | L5: - | M5: 1 | N5: 74.47 | O5: 0.05 | P5: 0 | Q5: 0.05 | R5: 1.1 | S5: =PRODUCT(N5,R5,) -> 81.917
C6: О | D6: СЗ | E6: 20 | F6: -35 | G6: 55 | H6: 1.8 | I6: 1.5 | J6: 2.7 | K6: 1.54 | L6: 1.29 | M6: 1 | N6: =PRODUCT(G6,J6,L6,M6,) -> 191.565 | O6: 0.1 | P6: 0 | Q6: 0.05 | R6: 1.15 | S6: =PRODUCT(N6,R6,) -> 220.29975
C7: ПЛ | D7: - | E7: 20 | F7: -35 | G7: 55 | H7: 4.58 | I7: 3.83 | J7: 17.5414 | K7: 0.19 | L7: - | M7: 0.4 | N7: 73.323052 | O7: 0 | P7: 0 | Q7: 0 | R7: 1 | S7: 73.323052
R8: На 1 этаже | T8: =SUM(T4:T7) -> 643.561677
A9: 201 | B9: Комната | C9: НС1 | D9: СЗ | E9: 20 | F9: -35 | G9: 55 | H9: 5 | I9: 3.39 | J9: =PRODUCT(H9,I9) -> 16.95 | K9: 0.25 | L9: - | M9: 1 | N9: =PRODUCT(G9,J9,K9,M9,) -> 233.0625 | O9: 0.1 | P9: 0.02 | Q9: 0.05 | R9: =SUM(1,O9:Q9) -> 1.17 | S9: =PRODUCT(N9,R9,) -> 272.683125 | T9: =SUM(S9:S11) -> 580.220575
C10: НС2 | D10: ЮЗ | E10: 20 | F10: -35 | G10: =E10-F10 -> 55 | H10: 1.6 | I10: 3.385 | J10: 5.416 | K10: 0.25 | L10: - | M10: 1 | N10: 74.47 | O10: 0.05 | P10: 0.02 | Q10: 0.05 | R10: 1.12 | S10: =PRODUCT(N10,R10,) -> 83.4064
C11: О | D11: СЗ | E11: 20 | F11: -35 | G11: 55 | H11: 1.8 | I11: 1.5 | J11: 2.7 | K11: 1.54 | L11: 1.29 | M11: 1 | N11: =PRODUCT(G11,J11,L11,M11,) -> 191.565 | O11: 0.1 | P11: 0.02 | Q11: 0.05 | R11: 1.17 | S11: =PRODUCT(N11,R11,) -> 224.13105
R12: На 2 этаже | T12: =SUM(T9:T11) -> 580.220575
A13: 301 | B13: Комната | C13: НС1 | D13: СЗ | E13: 20 | F13: -35 | G13: 55 | H13: 5 | I13: 3.39 | J13: =PRODUCT(H13,I13) -> 16.95 | K13: 0.25 | L13: - | M13: 1 | N13: =PRODUCT(G13,J13,K13,M13,) -> 233.0625 | O13: 0.1 | P13: 0.04 | Q13: 0.05 | R13: =SUM(1,O13:Q13) -> 1.19 | S13: =PRODUCT(N13,R13,) -> 277.344375 | T13: =SUM(S13:S15) -> 590.202525
C14: НС2 | D14: ЮЗ | E14: 20 | F14: -35 | G14: =E14-F14 -> 55 | H14: 1.6 | I14: 3.385 | J14: 5.416 | K14: 0.25 | L14: - | M14: 1 | N14: 74.47 | O14: 0.05 | P14: 0.04 | Q14: 0.05 | R14: 1.14 | S14: =PRODUCT(N14,R14,) -> 84.8958
C15: О | D15: СЗ | E15: 20 | F15: -35 | G15: 55 | H15: 1.8 | I15: 1.5 | J15: 2.7 | K15: 1.54 | L15: 1.29 | M15: 1 | N15: =PRODUCT(G15,J15,L15,M15,) -> 191.565 | O15: 0.1 | P15: 0.04 | Q15: 0.05 | R15: 1.19 | S15: =PRODUCT(N15,R15,) -> 227.96235
R16: На 3 этаже | T16: =SUM(T13:T15) -> 590.202525
A17: 401 | B17: Комната | C17: НС1 | D17: СЗ | E17: 20 | F17: -35 | G17: 55 | H17: 5 | I17: 3.39 | J17: =PRODUCT(H17,I17) -> 16.95 | K17: 0.25 | L17: - | M17: 1 | N17: =PRODUCT(G17,J17,K17,M17,) -> 233.0625 | O17: 0.1 | P17: 0.06 | Q17: 0.05 | R17: =SUM(1,O17:Q17) -> 1.21 | S17: =PRODUCT(N17,R17,) -> 282.005625 | T17: =SUM(S17:S19) -> 600.184475
C18: НС2 | D18: ЮЗ | E18: 20 | F18: -35 | G18: =E18-F18 -> 55 | H18: 1.6 | I18: 3.385 | J18: 5.416 | K18: 0.25 | L18: - | M18: 1 | N18: 74.47 | O18: 0.05 | P18: 0.06 | Q18: 0.05 | R18: 1.16 | S18: =PRODUCT(N18,R18,) -> 86.3852
C19: О | D19: СЗ | E19: 20 | F19: -35 | G19: 55 | H19: 1.8 | I19: 1.5 | J19: 2.7 | K19: 1.54 | L19: 1.29 | M19: 1 | N19: =PRODUCT(G19,J19,L19,M19,) -> 191.565 | O19: 0.1 | P19: 0.06 | Q19: 0.05 | R19: 1.21 | S19: =PRODUCT(N19,R19,) -> 231.79365
R20: На 4 этаже | T20: =SUM(T17:T19) -> 600.184475
A21: 501 | B21: Комната | C21: НС1 | D21: СЗ | E21: 20 | F21: -35 | G21: 55 | H21: 5 | I21: 3.39 | J21: =PRODUCT(H21,I21) -> 16.95 | K21: 0.25 | L21: - | M21: 1 | N21: =PRODUCT(G21,J21,K21,M21,) -> 233.0625 | O21: 0.1 | P21: 0.08 | Q21: 0.05 | R21: =SUM(1,O21:Q21) -> 1.23 | S21: =PRODUCT(N21,R21,) -> 286.666875 | T21: =SUM(S21:S23) -> 610.166425
C22: НС2 | D22: ЮЗ | E22: 20 | F22: -35 | G22: =E22-F22 -> 55 | H22: 1.6 | I22: 3.385 | J22: 5.416 | K22: 0.25 | L22: - | M22: 1 | N22: 74.47 | O22: 0.05 | P22: 0.08 | Q22: 0.05 | R22: 1.18 | S22: =PRODUCT(N22,R22,) -> 87.8746
C23: О | D23: СЗ | E23: 20 | F23: -35 | G23: 55 | H23: 1.8 | I23: 1.5 | J23: 2.7 | K23: 1.54 | L23: 1.29 | M23: 1 | N23: =PRODUCT(G23,J23,L23,M23,) -> 191.565 | O23: 0.1 | P23: 0.08 | Q23: 0.05 | R23: 1.23 | S23: =PRODUCT(N23,R23,) -> 235.62495
R24: На 5 этаже | T24: =SUM(T21:T23) -> 610.166425
A25: 601 | B25: Комната | C25: НС1 | D25: СЗ | E25: 20 | F25: -35 | G25: 55 | H25: 5 | I25: 3.39 | J25: =PRODUCT(H25,I25) -> 16.95 | K25: 0.25 | L25: - | M25: 1 | N25: =PRODUCT(G25,J25,K25,M25,) -> 233.0625 | O25: 0.1 | P25: 0.1 | Q25: 0.05 | R25: =SUM(1,O25:Q25) -> 1.25 | S25: =PRODUCT(N25,R25,) -> 291.328125 | T25: =SUM(S25:S27) -> 620.148375
C26: НС2 | D26: ЮЗ | E26: 20 | F26: -35 | G26: =E26-F26 -> 55 | H26: 1.6 | I26: 3.385 | J26: 5.416 | K26: 0.25 | L26: - | M26: 1 | N26: 74.47 | O26: 0.05 | P26: 0.1 | Q26: 0.05 | R26: 1.2 | S26: =PRODUCT(N26,R26,) -> 89.364
C27: О | D27: СЗ | E27: 20 | F27: -35 | G27: 55 | H27: 1.8 | I27: 1.5 | J27: 2.7 | K27: 1.54 | L27: 1.29 | M27: 1 | N27: =PRODUCT(G27,J27,L27,M27,) -> 191.565 | O27: 0.1 | P27: 0.1 | Q27: 0.05 | R27: 1.25 | S27: =PRODUCT(N27,R27,) -> 239.45625
R28: На 6 этаже | T28: =SUM(T25:T27) -> 620.148375
A29: 701 | B29: Комната | C29: НС1 | D29: СЗ | E29: 20 | F29: -35 | G29: 55 | H29: 5 | I29: 3.39 | J29: =PRODUCT(H29,I29) -> 16.95 | K29: 0.25 | L29: - | M29: 1 | N29: =PRODUCT(G29,J29,K29,M29,) -> 233.0625 | O29: 0.1 | P29: 0.12 | Q29: 0.05 | R29: =SUM(1,O29:Q29) -> 1.27 | S29: =PRODUCT(N29,R29,) -> 295.989375 | T29: =SUM(S29:S31) -> 630.360203
C30: НС2 | D30: ЮЗ | E30: 20 | F30: -35 | G30: =E30-F30 -> 55 | H30: 1.6 | I30: 3.385 | J30: 5.416 | K30: 0.25 | L30: - | M30: 1 | N30: 74.47 | O30: 0.05 | P30: 0.12 | Q30: 0.05 | R30: 1.22 | S30: =PRODUCT(N30,R30,) -> 90.8534
C31: О | D31: СЗ | E31: 20 | F31: -35 | G31: 55 | H31: 1.8 | I31: 1.5 | J31: 2.7 | K31: 1.54 | L31: 1.29 | M31: 1 | N31: =PRODUCT(G31,J31,L31,M31,) -> 191.565 | O31: 0.1 | P31: 0.1212 | Q31: 0.05 | R31: 1.2712 | S31: =PRODUCT(N31,R31,) -> 243.517428
R32: На 7 этаже | T32: =SUM(T29:T31) -> 630.360203
A33: 801 | B33: Комната | C33: НС1 | D33: СЗ | E33: 20 | F33: -35 | G33: 55 | H33: 5 | I33: 3.39 | J33: =PRODUCT(H33,I33) -> 16.95 | K33: 0.25 | L33: - | M33: 1 | N33: =PRODUCT(G33,J33,K33,M33,) -> 233.0625 | O33: 0.1 | P33: 0.14 | Q33: 0.05 | R33: =SUM(1,O33:Q33) -> 1.29 | S33: =PRODUCT(N33,R33,) -> 300.650625 | T33: =SUM(S33:S35) -> 640.112275
C34: НС2 | D34: ЮЗ | E34: 20 | F34: -35 | G34: =E34-F34 -> 55 | H34: 1.6 | I34: 3.385 | J34: 5.416 | K34: 0.25 | L34: - | M34: 1 | N34: 74.47 | O34: 0.05 | P34: 0.14 | Q34: 0.05 | R34: 1.24 | S34: =PRODUCT(N34,R34,) -> 92.3428
C35: О | D35: СЗ | E35: 20 | F35: -35 | G35: 55 | H35: 1.8 | I35: 1.5 | J35: 2.7 | K35: 1.54 | L35: 1.29 | M35: 1 | N35: =PRODUCT(G35,J35,L35,M35,) -> 191.565 | O35: 0.1 | P35: 0.14 | Q35: 0.05 | R35: 1.29 | S35: =PRODUCT(N35,R35,) -> 247.11885
R36: На 8 этаже | T36: =SUM(T33:T35) -> 640.112275
A37: 901 | B37: Комната | C37: НС1 | D37: СЗ | E37: 20 | F37: -35 | G37: 55 | H37: 5 | I37: 3.39 | J37: =PRODUCT(H37,I37) -> 16.95 | K37: 0.25 | L37: - | M37: 1 | N37: =PRODUCT(G37,J37,K37,M37,) -> 233.0625 | O37: 0.1 | P37: 0.15 | Q37: 0.05 | R37: =SUM(1,O37:Q37) -> 1.3 | S37: =PRODUCT(N37,R37,) -> 302.98125 | T37: =SUM(S37:S39) -> 645.10325
C38: НС2 | D38: ЮЗ | E38: 20 | F38: -35 | G38: =E38-F38 -> 55 | H38: 1.6 | I38: 3.385 | J38: 5.416 | K38: 0.25 | L38: - | M38: 1 | N38: 74.47 | O38: 0.05 | P38: 0.15 | Q38: 0.05 | R38: 1.25 | S38: =PRODUCT(N38,R38,) -> 93.0875
C39: О | D39: СЗ | E39: 20 | F39: -35 | G39: 55 | H39: 1.8 | I39: 1.5 | J39: 2.7 | K39: 1.54 | L39: 1.29 | M39: 1 | N39: =PRODUCT(G39,J39,L39,M39,) -> 191.565 | O39: 0.1 | P39: 0.15 | Q39: 0.05 | R39: 1.3 | S39: =PRODUCT(N39,R39,) -> 249.0345
R40: На 9 этаже | T40: =SUM(T37:T39) -> 645.10325
A41: 1001 | B41: Комната | C41: НС1 | D41: СЗ | E41: 20 | F41: -35 | G41: 55 | H41: 5 | I41: 3.39 | J41: =PRODUCT(H41,I41) -> 16.95 | K41: 0.25 | L41: - | M41: 1 | N41: =PRODUCT(G41,J41,K41,M41,) -> 233.0625 | O41: 0.1 | P41: 0.15 | Q41: 0.05 | R41: =SUM(1,O41:Q41) -> 1.3 | S41: =PRODUCT(N41,R41,) -> 302.98125 | T41: =SUM(S41:S44) -> 827.446103
C42: НС2 | D42: ЮЗ | E42: 20 | F42: -35 | G42: =E42-F42 -> 55 | H42: 1.6 | I42: 3.385 | J42: 5.416 | K42: 0.25 | L42: - | M42: 1 | N42: 74.47 | O42: 0.05 | P42: 0.15 | Q42: 0.05 | R42: 1.25 | S42: =PRODUCT(N42,R42,) -> 93.0875
C43: О | D43: СЗ | E43: 20 | F43: -35 | G43: 55 | H43: 1.8 | I43: 1.5 | J43: 2.7 | K43: 1.54 | L43: 1.29 | M43: 1 | N43: =PRODUCT(G43,J43,L43,M43,) -> 191.565 | O43: 0.1 | P43: 0.15 | Q43: 0.05 | R43: 1.3 | S43: =PRODUCT(N43,R43,) -> 249.0345
C44: ПТ | D44: - | E44: 20 | F44: -35 | G44: 55 | H44: 4.58 | I44: 3.83 | J44: 17.5414 | K44: 0.21 | L44: - | M44: 0.9 | N44: =PRODUCT(G44,J44,K44,M44,) -> 182.342853 | O44: 0 | P44: 0 | Q44: 0 | R44: 1 | S44: 182.342853
R45: На 10 этаже | T45: =SUM(T41:T44) -> 827.446103
R46: Дом | T46: =T4+T9+T13+T17+T21+T25+T29+T33+T37+T41 -> 6387.505883

Sheet Лист2

Sheet Лист3
